fUSD/lending_fUSD_20260226
["ID","MTS","AMOUNT","RATE_DAILY","PERIOD"]
[406744344,1772140241587,-233.582529,0.0001134,2]
[406744345,1772140241596,-271.472129,0.0001134,2]
[406744346,1772140241606,-271.472129,0.0001134,2]
[406744347,1772140241615,-271.472129,0.0001134,2]
[406744348,1772140241625,-271.472129,0.0001134,2]
[406744349,1772140241635,-151.0,0.0001134,2]
[406744350,1772140241645,-151.0,0.0001134,2]
[406744351,1772140241654,-151.0,0.0001134,2]
[406744352,1772140241664,-151.0,0.0001134,2]
[406744353,1772140241673,-151.0,0.0001134,2]
[406744354,1772140241683,-151.0,0.0001134,2]
[406744355,1772140241693,-200.0,0.00011345,2]
[406744356,1772140241702,-200.09788063,0.00011377,2]
[406744357,1772140241712,-1008.26998517,0.00011377,2]
[406744358,1772140241721,-1000.0,0.00011377,2]
[406744359,1772140241731,-166.66,0.00011397,2]
[406744360,1772140241741,-22598.43819848,0.00011421,2]
[406744361,1772140241751,-10410.4426617,0.00011422,2]
[406744362,1772140241761,-166.66,0.00011436,2]
[406744363,1772140241772,-200.0,0.00011459,2]
[406744364,1772140241793,-5531.0,0.000115,5]
[406744365,1772140241803,-166.66,0.00011507,2]
[406744366,1772140241813,-193.99,0.00011515,2]
[406744367,1772140241823,-350.0,0.00011536,2]
[406744368,1772140241833,-200.0,0.00011573,2]
[406744369,1772140241843,-350.0,0.00011634,2]
[406744370,1772140241852,-350.0,0.00011687,2]
[406744371,1772140241862,-200.0,0.00011689,2]
[406744372,1772140241871,-6385.47593765,0.00011696,2]
[406744373,1772140241881,-350.0,0.00011727,2]
[406744374,1772140241891,-10410.4426619,0.00011899,2]
[406744375,1772140241901,-1500.0,0.00011924,2]
[406744376,1772140241911,-11837.699359,0.00011934,2]
[406744377,1772140241920,-350.0,0.00011959,2]
[406744378,1772140241930,-22598.43819848,0.00011972,2]
[406744379,1772140241939,-4187.851538,0.00011994,2]
[406744380,1772140241949,-193.99,0.00012038,2]
[406744381,1772140241959,-350.0,0.00012069,2]
[406744382,1772140241968,-350.0,0.00012246,2]
[406744383,1772140241977,-168.54,0.00012248,2]
[406744384,1772140241987,-350.0,0.00012341,2]
[406744385,1772140241997,-204.48,0.00012408,2]
[406744386,1772140242006,-2000.0,0.00012472,2]
[406744387,1772140242015,-22598.43819848,0.00012524,2]
[406744388,1772140242025,-193.99,0.00012561,2]
[406744389,1772140242034,-1000.0,0.00012568,2]
[406744390,1772140242043,-150.0,0.00012571,2]
[406744391,1772140242052,-150.0,0.00012572,2]
[406744392,1772140242061,-150.0,0.00012573,2]
[406744393,1772140242071,-150.0,0.00012574,2]
[406744394,1772140242080,-150.0,0.00012575,2]
[406744395,1772140242090,-150.0,0.00012576,2]
[406744396,1772140242100,-150.0,0.00012577,2]
[406744397,1772140242109,-150.0,0.00012578,2]
[406744398,1772140242118,-150.0,0.00012579,2]
[406744399,1772140242128,-150.0,0.0001258,2]
[406744400,1772140242137,-150.0,0.00012581,2]
[406744401,1772140242147,-150.0,0.00012582,2]
[406744402,1772140242157,-199.9999,0.00012583,2]
[406744403,1772140242167,-10410.4426617,0.00012612,2]
[406744404,1772140242177,-1340.0,0.00012811,2]
[406744405,1772140242186,-1277.0,0.00012811,2]
[406744406,1772140242196,-150.597,0.00012811,2]
[406744407,1772140242205,-942.805,0.00012811,2]
[406744408,1772140242215,-1211.0,0.00012811,2]
[406744409,1772140242224,-2456.0,0.00012811,2]
[406744410,1772140242234,-4572.0,0.00012811,2]
[406744411,1772140242244,-350.0,0.00012871,2]
[406744412,1772140242254,-6385.47593765,0.00012937,2]
[406744413,1772140242263,-350.0,0.00012959,2]
[406744414,1772140242273,-350.0,0.00013006,2]
[406744415,1772140242283,-2500.0,0.0001302,2]
[406744416,1772140242292,-10410.4426619,0.00013022,2]
[406744417,1772140242302,-151.0,0.00013027,2]
[406744418,1772140242312,-271.472129,0.00013027,2]
[406744419,1772140242322,-271.472129,0.00013027,2]
[406744420,1772140242331,-271.472129,0.00013027,2]
[406744421,1772140242341,-271.472129,0.00013027,2]
[406744422,1772140242351,-151.0,0.00013027,2]
[406744423,1772140242361,-151.0,0.00013027,2]
[406744424,1772140242371,-151.0,0.00013027,2]
[406744425,1772140242381,-151.0,0.00013027,2]
[406744426,1772140242395,-151.0,0.00013027,2]
[406744427,1772140242404,-350.0,0.00013073,2]
[406744428,1772140242414,-22598.43819848,0.00013075,2]
[406744429,1772140242426,-193.99,0.00013085,2]
[406744430,1772140242435,-500.0,0.0001312,2]
[406744431,1772140242444,-500.0,0.0001312,2]
[406744432,1772140242454,-500.0,0.0001312,2]
[406744433,1772140242464,-500.0,0.0001312,2]
[406744434,1772140242474,-500.0,0.0001312,2]
[406744435,1772140242484,-500.0,0.0001312,2]
[406744436,1772140242494,-500.0,0.0001312,2]
[406744437,1772140242504,-500.0,0.0001312,2]
[406744438,1772140242513,-500.0,0.0001312,2]
[406744439,1772140242523,-500.0,0.0001312,2]
[406744440,1772140242532,-500.0,0.0001312,2]
[406744441,1772140242542,-500.0,0.0001312,2]
[406744442,1772140242552,-500.0,0.0001312,2]
[406744443,1772140242561,-500.0,0.0001312,2]
[406744444,1772140242570,-500.0,0.0001312,2]
[406744445,1772140242580,-500.0,0.0001312,2]
[406744446,1772140242590,-500.0,0.0001312,2]
[406744447,1772140242599,-500.0,0.0001312,2]
[406744448,1772140242609,-500.0,0.0001312,2]
[406744449,1772140242618,-500.0,0.0001312,2]
[406744450,1772140242628,-500.0,0.0001312,2]
[406744451,1772140242638,-500.0,0.0001312,2]
[406744452,1772140242647,-500.0,0.0001312,2]
[406744453,1772140242656,-500.0,0.0001312,2]
[406744454,1772140242666,-500.0,0.0001312,2]
[406744455,1772140242676,-500.0,0.0001312,2]
[406744456,1772140242688,-500.0,0.0001312,2]
[406744457,1772140242697,-500.0,0.0001312,2]
[406744458,1772140242707,-500.0,0.0001312,2]
[406744459,1772140242716,-500.0,0.0001312,2]
[406744461,1772140242726,-500.0,0.0001312,2]
[406744463,1772140242735,-500.0,0.0001312,2]
[406744465,1772140242745,-500.0,0.0001312,2]
[406744467,1772140242754,-500.0,0.0001312,2]
[406744469,1772140242764,-500.0,0.0001312,2]
[406744471,1772140242773,-500.0,0.0001312,2]
[406744473,1772140242783,-500.0,0.0001312,2]
[406744475,1772140242792,-500.0,0.0001312,2]
[406744477,1772140242802,-1000.0,0.0001312,2]
[406744479,1772140242812,-1000.0,0.0001312,2]
[406744481,1772140242822,-500.0,0.0001312,2]
[406744483,1772140242832,-1000.0,0.0001312,2]
[406744485,1772140242841,-500.0,0.0001312,2]
[406744486,1772140242851,-500.0,0.0001312,2]
[406744488,1772140242861,-1000.0,0.0001312,2]
[406744490,1772140242870,-500.0,0.0001312,2]
[406744492,1772140242881,-1000.0,0.0001312,2]
[406744494,1772140242891,-500.0,0.0001312,2]
[406744496,1772140242901,-1000.0,0.0001312,2]
[406744498,1772140242912,-500.0,0.0001312,2]
[406744499,1772140242923,-1000.0,0.0001312,2]
[406744500,1772140242932,-500.0,0.0001312,2]
[406744501,1772140242942,-500.0,0.0001312,2]
[406744502,1772140242952,-1000.0,0.0001312,2]
[406744504,1772140242962,-500.0,0.0001312,2]
[406744505,1772140242972,-500.0,0.0001312,2]
[406744506,1772140242983,-1000.0,0.0001312,2]
[406744507,1772140242992,-500.0,0.0001312,2]
[406744508,1772140243002,-500.0,0.0001312,2]
[406744509,1772140243011,-500.0,0.0001312,2]
[406744510,1772140243021,-1000.0,0.0001312,2]
[406744511,1772140243030,-500.0,0.0001312,2]
[406744512,1772140243040,-500.0,0.0001312,2]
[406744513,1772140243049,-1000.0,0.0001312,2]
[406744514,1772140243059,-500.0,0.0001312,2]
[406744515,1772140243068,-500.0,0.0001312,2]
[406744516,1772140243077,-1000.0,0.0001312,2]
[406744517,1772140243087,-500.0,0.0001312,2]
[406744518,1772140243096,-502.38608045,0.0001312,2]
[406744519,1772140243105,-500.0,0.0001312,2]
[406744520,1772140243114,-1000.0,0.0001312,2]
[406744521,1772140243123,-853.76768935,0.0001312,2]
[406744522,1772140243132,-500.0,0.0001312,2]
[406744523,1772140243142,-1000.0,0.0001312,2]
[406744524,1772140243151,-500.0,0.0001312,2]
[406744525,1772140243161,-670.0,0.0001312,2]
[406744526,1772140243170,-500.0,0.0001312,2]
[406744527,1772140243179,-500.0,0.0001312,2]
[406744528,1772140243188,-500.0,0.0001312,2]
[406744529,1772140243198,-500.0,0.0001312,2]
[406744530,1772140243207,-500.0,0.0001312,2]
[406744531,1772140243216,-500.0,0.0001312,2]
[406744532,1772140243226,-500.0,0.0001312,2]
[406744533,1772140243235,-500.0,0.0001312,2]
[406744534,1772140243244,-500.0,0.0001312,2]
[406744535,1772140243254,-500.0,0.0001312,2]
[406744536,1772140243263,-500.0,0.0001312,2]
[406744537,1772140243272,-500.0,0.0001312,2]
[406744538,1772140243282,-500.0,0.0001312,2]
[406744539,1772140243291,-500.0,0.0001312,2]
[406744540,1772140243300,-500.0,0.0001312,2]
[406744541,1772140243309,-500.0,0.0001312,2]
[406744542,1772140243319,-500.0,0.0001312,2]
[406744543,1772140243328,-500.0,0.0001312,2]
[406744544,1772140243337,-500.0,0.0001312,2]
[406744545,1772140243347,-500.0,0.0001312,2]
[406744546,1772140243357,-500.0,0.0001312,2]
[406744547,1772140243366,-500.0,0.0001312,2]
[406744548,1772140243376,-500.0,0.0001312,2]
[406744549,1772140243389,-500.0,0.0001312,2]
[406744550,1772140243403,-500.0,0.0001312,2]
[406744551,1772140243412,-874.11423967,0.0001312,2]
[406744552,1772140243422,-500.0,0.0001312,2]
[406744553,1772140243432,-500.0,0.0001312,2]
[406744554,1772140243444,-500.0,0.0001312,2]
[406744555,1772140243453,-500.0,0.0001312,2]
[406744556,1772140243463,-500.0,0.0001312,2]
[406744557,1772140243473,-500.0,0.0001312,2]
[406744558,1772140243483,-500.0,0.0001312,2]
[406744559,1772140243492,-152.0758102,0.0001312,2]
[406744560,1772140243501,-500.0,0.0001312,2]
[406744561,1772140243510,-500.0,0.0001312,2]
[406744562,1772140243519,-500.0,0.0001312,2]
[406744563,1772140243529,-500.0,0.0001312,2]
[406744564,1772140243538,-500.0,0.0001312,2]
[406744565,1772140243547,-507.0718689,0.0001312,2]
[406744566,1772140243556,-500.0,0.0001312,2]
[406744567,1772140243566,-500.0,0.0001312,2]
[406744568,1772140243576,-500.0,0.0001312,2]
[406744569,1772140243585,-500.0,0.0001312,2]
[406744570,1772140243594,-500.0,0.0001312,2]
[406744571,1772140243603,-500.0,0.0001312,2]
[406744572,1772140243612,-500.0,0.0001312,2]
[406744573,1772140243622,-500.0,0.0001312,2]
[406744574,1772140243631,-500.0,0.0001312,2]
[406744575,1772140243641,-500.0,0.0001312,2]
[406744576,1772140243650,-500.0,0.0001312,2]
[406744577,1772140243659,-860.86736991,0.0001312,2]
[406744578,1772140243668,-500.0,0.0001312,2]
[406744579,1772140243678,-500.0,0.0001312,2]
[406744580,1772140243687,-500.0,0.0001312,2]
[406744581,1772140243696,-500.0,0.0001312,2]
[406744582,1772140243705,-557.04324665,0.0001312,2]
[406744583,1772140243716,-500.0,0.0001312,2]
[406744584,1772140243726,-173.95657067,0.00013289,2]
[406744585,1772140243735,-160.0,0.00013289,2]
[406744586,1772140243745,-1833.85447521,0.00013338,2]
[406744587,1772140243754,-3240.0,0.00013425,2]
[406744588,1772140243763,-694.94041654,0.00013558,2]
[406744589,1772140243773,-2966.1264312,0.00013568,2]
[406744590,1772140243782,-239.2570616,0.00013598,2]
[406744591,1772140243792,-231.01909343,0.000136,2]
[406744592,1772140243802,-193.99,0.00013608,2]
[406744593,1772140243811,-150.0,0.0001361,2]
[406744594,1772140243820,-4595.26836779,0.0001361,2]
[406744595,1772140243829,-150.0,0.0001361,2]
[406744596,1772140243839,-51412.34466412,0.0001361,2]
[406744597,1772140243848,-150.0,0.0001361,2]
[406744598,1772140243857,-2679.14252396,0.0001361,2]
[406744599,1772140243867,-22598.43819848,0.00013627,2]
[406744600,1772140243877,-500.0,0.00013698,2]
[406744601,1772140243888,-500.0,0.00013698,2]
[406744602,1772140243898,-500.0,0.00013698,2]
[406744603,1772140243908,-500.0,0.00013698,2]
[406744604,1772140243917,-500.0,0.00013698,2]
[406744605,1772140243928,-500.0,0.00013698,2]
[406744606,1772140243938,-500.0,0.00013698,2]
[406744607,1772140243947,-500.0,0.00013698,2]
[406744608,1772140243957,-500.0,0.00013698,2]
[406744609,1772140243967,-500.0,0.00013698,2]
[406744610,1772140243976,-500.0,0.00013698,2]
[406744611,1772140243986,-500.0,0.00013698,2]
[406744612,1772140243997,-500.0,0.00013698,2]
[406744613,1772140244007,-500.0,0.00013698,2]
[406744614,1772140244017,-500.0,0.00013698,2]
[406744615,1772140244027,-409.20397161,0.00013698,2]
[406744616,1772140244036,-500.0,0.00013698,2]
[406744617,1772140244045,-500.0,0.00013698,2]
[406744618,1772140244055,-500.0,0.00013698,2]
[406744619,1772140244064,-500.0,0.00013698,2]
[406744620,1772140244073,-546.824255,0.00013698,2]
[406744621,1772140244082,-318.18597163,0.00013698,2]
[406744622,1772140244092,-500.0,0.00013698,2]
[406744623,1772140244101,-500.0,0.00013698,2]
[406744624,1772140244110,-568.60354988,0.00013698,2]
[406744625,1772140244119,-500.0,0.00013698,2]
[406744626,1772140244128,-500.0,0.00013698,2]
[406744627,1772140244138,-500.0,0.00013698,2]
[406744628,1772140244147,-500.0,0.00013698,2]
[406744629,1772140244156,-500.0,0.00013698,2]
[406744630,1772140244165,-500.0,0.00013698,2]
[406744631,1772140244175,-500.0,0.00013698,2]
[406744632,1772140244184,-500.0,0.00013698,2]
[406744634,1772140244193,-500.0,0.00013698,2]
[406744636,1772140244202,-500.0,0.00013698,2]
[406744638,1772140244211,-500.0,0.00013698,2]
[406744640,1772140244220,-500.0,0.00013698,2]
[406744641,1772140244229,-500.0,0.00013698,2]
[406744642,1772140244239,-269.57915282,0.00013698,2]
[406744643,1772140244248,-550.69928561,0.00013698,2]
[406744644,1772140244258,-500.0,0.00013698,2]
[406744645,1772140244267,-500.0,0.00013698,2]
[406744646,1772140244276,-467.36158262,0.00013698,2]
[406744647,1772140244286,-500.0,0.00013698,2]
[406744648,1772140244296,-500.0,0.00013698,2]
[406744649,1772140244306,-500.0,0.00013698,2]
[406744650,1772140244315,-500.0,0.00013698,2]
[406744651,1772140244497,-500.0,0.00013698,2]
[406744652,1772140244508,-500.0,0.00013698,2]
[406744653,1772140244517,-541.00506012,0.00013698,2]
[406744654,1772140244527,-500.0,0.00013698,2]
[406744655,1772140244536,-500.0,0.00013698,2]
[406744656,1772140244546,-500.0,0.00013698,2]
[406744657,1772140244555,-500.0,0.00013698,2]
[406744658,1772140244566,-523.24,0.00013698,2]
[406744659,1772140244575,-587.0377833,0.00013698,2]
[406744660,1772140244586,-500.0,0.00013698,2]
[406744661,1772140244597,-500.0,0.00013698,2]
[406744662,1772140244606,-500.0,0.00013698,2]
[406744663,1772140244615,-505.72700333,0.00013698,2]
[406744664,1772140244625,-500.0,0.00013698,2]
[406744665,1772140244634,-500.0,0.00013698,2]
[406744666,1772140244644,-622.52528036,0.00013698,2]
[406744667,1772140244653,-500.0,0.00013698,2]
[406744668,1772140244662,-500.0,0.00013698,2]
[406744669,1772140244672,-500.0,0.00013698,2]
[406744670,1772140244681,-500.0,0.00013698,2]
[406744671,1772140244690,-500.0,0.00013698,2]
[406744672,1772140244700,-500.0,0.00013698,2]
[406744673,1772140244710,-500.0,0.00013698,2]
[406744674,1772140244720,-510.71550656,0.00013698,2]
[406744675,1772140244729,-584.7,0.00013698,2]
[406744676,1772140244739,-500.0,0.00013698,2]
[406744677,1772140244749,-500.0,0.00013698,2]
[406744678,1772140244758,-500.0,0.00013698,2]
[406744679,1772140244768,-519.74655363,0.00013698,2]
[406744680,1772140244778,-504.35511504,0.00013698,2]
[406744681,1772140244787,-500.0,0.00013698,2]
[406744682,1772140244797,-263.08588841,0.00013698,2]
[406744683,1772140244807,-500.0,0.00013698,2]
[406744684,1772140244816,-500.0,0.00013698,3]
[406744685,1772140244826,-500.0,0.00013698,4]
[406744686,1772140244835,-500.0,0.00013698,5]
[406744687,1772140244845,-500.0,0.00013698,6]
[406744688,1772140244854,-500.0,0.00013698,7]
[406744689,1772140244863,-500.0,0.00013698,8]
[406744690,1772140244873,-500.0,0.00013698,9]
[406744691,1772140244882,-500.0,0.00013698,10]
[406744692,1772140244891,-500.0,0.00013698,11]
[406744693,1772140244901,-500.0,0.00013698,12]
[406744694,1772140244911,-500.0,0.00013698,13]
[406744695,1772140244921,-500.0,0.00013698,14]
[406744696,1772140244930,-500.0,0.00013698,15]
[406744697,1772140244939,-500.0,0.00013698,16]
[406744698,1772140244949,-500.0,0.00013698,17]
[406744699,1772140244958,-500.0,0.00013698,18]
[406744700,1772140244967,-500.0,0.00013698,19]
[406744701,1772140244977,-500.0,0.00013698,20]
[406744702,1772140244986,-500.0,0.00013698,21]
[406744703,1772140244995,-500.0,0.00013698,21]
[406744704,1772140245005,-500.0,0.00013698,21]
[406744705,1772140245014,-384.61162915,0.00013698,21]
[406744706,1772140245023,-200.0,0.00013699,2]
[406744707,1772140245032,-553.32,0.00013699,2]
[406744708,1772140245042,-271.25,0.00013699,2]
[406744709,1772140245051,-226.04,0.00013699,2]
[406744710,1772140245060,-188.37,0.00013699,2]
[406744711,1772140245069,-156.97,0.00013699,2]
[406744712,1772140245078,-150.07970695,0.000137,2]
[406744713,1772140245087,-161.78,0.000137,2]
[406744714,1772140245096,-1836.52,0.000137,2]
[406744715,1772140245106,-1836.52,0.000137,2]
[406744716,1772140245115,-1836.52,0.000137,2]
[406744717,1772140245123,-1836.52,0.000137,2]
[406744718,1772140245133,-1836.52,0.000137,2]
[406744719,1772140245142,-168.54,0.0001378,2]
[406744720,1772140245152,-10410.4426617,0.00013803,2]
[406744721,1772140245161,-1000.0,0.00013824,2]
[406744722,1772140245171,-19085.2733928,0.00013871,2]
[406744723,1772140245180,-168.0,0.0001388,2]
[406744724,1772140245190,-168.0,0.00013907,2]
[406744725,1772140245199,-215.0,0.00013971,2]
[406744726,1772140245208,-150.0,0.00013971,2]
[406744727,1772140245217,-150.05,0.00013971,2]
[406744728,1772140245226,-150.061,0.00013971,2]
[406744729,1772140245235,-150.034,0.00013971,2]
[406744730,1772140245244,-150.0,0.00013971,2]
[406744731,1772140245253,-150.0,0.00013971,2]
[406744732,1772140245262,-150.0,0.00013971,2]
[406744733,1772140245271,-150.203,0.00013971,2]
[406744734,1772140245280,-618.0,0.00013971,2]
[406744735,1772140245290,-3498.0,0.00013971,2]
[406744736,1772140245299,-185.0,0.00013974,30]
[406744737,1772140245309,-193.99,0.00014132,2]
[406744738,1772140245318,-6385.47593765,0.00014178,2]
[406744739,1772140245327,-22598.43819848,0.00014178,2]
[406744740,1772140245339,-2858.14238548,0.00014178,2]
[406744741,1772140245348,-2288.77901783,0.0001421,7]
[406744742,1772140245358,-151.0,0.00014258,2]
[406744743,1772140245367,-28065.41,0.00014258,2]
[406744744,1772140245376,-168.0,0.00014278,2]
[406744745,1772140245386,-439.0,0.00014287,2]
[406744746,1772140245397,-439.0,0.0001429,2]
[406744747,1772140245406,-168.0,0.00014331,2]
[406744748,1772140245416,-439.0,0.00014378,2]
[406744749,1772140245425,-553.32,0.00014384,2]
[406744750,1772140245435,-529.0,0.000144,2]
[406744751,1772140245445,-439.0,0.00014417,2]
[406744752,1772140245454,-439.0,0.00014556,2]
[406744753,1772140245464,-151.0,0.00014634,2]
[406744754,1772140245473,-734.0,0.00014666,2]
[406744755,1772140245483,-150.0,0.00014666,2]
[406744756,1772140245492,-284.0,0.00014666,2]
[406744757,1772140245501,-439.0,0.00014681,2]
[406744758,1772140245511,-666.0,0.00014713,2]
[406744759,1772140245521,-151.0,0.00014715,2]
[406744760,1772140245530,-271.472129,0.00014715,2]
[406744761,1772140245539,-271.472129,0.00014715,2]
[406744762,1772140245548,-271.472129,0.00014715,2]
[406744763,1772140245557,-271.472129,0.00014715,2]
[406744764,1772140245567,-151.0,0.00014715,2]
[406744765,1772140245578,-151.0,0.00014715,2]
[406744766,1772140245588,-151.0,0.00014715,2]
[406744767,1772140245600,-184.188748,0.00014715,2]
[406744768,1772140245610,-151.0,0.00014715,2]
[406744769,1772140245620,-529.0,0.00014806,2]
[406744770,1772140245630,-529.0,0.00014811,2]
[406744771,1772140245638,-724.121591,0.00014897,7]
[406744772,1772140245648,-300.0,0.000149,5]
[406744773,1772140245657,-250.0,0.00015,2]
[406744774,1772140245667,-553.32,0.00015068,2]
[406744775,1772140245676,-1000.0,0.00015081,2]
[406744776,1772140245688,-502.0,0.0001512,2]
[406744777,1772140245697,-581.0,0.00015276,2]
[406744778,1772140245707,-150.0,0.00015276,2]
[406744779,1772140245716,-150.0,0.00015276,2]
[406744780,1772140245725,-150.0,0.00015276,2]
[406744781,1772140245735,-150.0,0.00015276,2]
[406744782,1772140245745,-150.0,0.00015276,2]
[406744783,1772140245755,-173.0,0.00015276,2]
[406744784,1772140245764,-150.0,0.00015284,7]
[406744785,1772140245774,-277.0,0.00015284,7]
[406744786,1772140245783,-500.0,0.00015333,2]
[406744787,1772140245792,-6385.47593765,0.00015419,2]
[406744788,1772140245802,-300.21,0.00015474,2]
[406744789,1772140245812,-713.0,0.0001552,2]
[406744790,1772140245822,-150.0,0.0001552,2]
[406744791,1772140245831,-263.0,0.0001552,2]
[406744792,1772140245840,-239.25706158,0.00015749,2]
[406744793,1772140245850,-231.01909341,0.0001575,2]
[406744794,1772140245859,-174.0,0.0001575,7]
[406744796,1772140245869,-553.32,0.00015753,2]
[406744797,1772140245879,-1340.0,0.00015811,2]
[406744798,1772140245888,-1277.0,0.00015811,2]
[406744799,1772140245898,-920.0,0.00015811,2]
[406744800,1772140245907,-1211.0,0.00015811,2]
[406744801,1772140245917,-2456.0,0.00015811,2]
[406744802,1772140245927,-4572.0,0.00015811,2]
[406744803,1772140245936,-19085.27339278,0.00015886,2]
[406744804,1772140245946,-500.0,0.00015895,2]
[406744805,1772140245956,-27621.298505,0.00015913,7]
[406744806,1772140245966,-150.0,0.00015956,7]
[406744807,1772140245975,-188.0,0.00015956,7]
[406744808,1772140245985,-9771.653589,0.00015992,7]
[406744809,1772140245995,-6778.1057,0.00016,2]
[406744810,1772140246005,-200.65305,0.00016,2]
[406744811,1772140246015,-2858.14238548,0.00016039,2]
[406744812,1772140246025,-325.24775523,0.00016115,2]
[406744813,1772140246036,-405.62075362,0.00016115,2]
[406744814,1772140246048,-500.0,0.00016115,2]
[406744815,1772140246061,-500.0,0.00016115,2]
[406744816,1772140246071,-1306.0,0.00016246,2]
[406744817,1772140246080,-1911.0,0.00016246,2]
[406744818,1772140246089,-150.0,0.00016376,14]
[406744819,1772140246098,-224.0,0.00016376,14]
[406744820,1772140246108,-162.0,0.00016376,30]
[406744821,1772140246117,-845.0,0.000164,2]
[406744822,1772140246127,-500.0,0.00016438,2]
[406744823,1772140246137,-553.32,0.00016438,2]
[406744824,1772140246147,-1000.0,0.00016438,2]
[406744825,1772140246156,-500.0,0.00016493,2]
[406744826,1772140246167,-152.0,0.00016535,14]
[406744827,1772140246176,-152.01,0.00016535,14]
[406744828,1772140246185,-257.0,0.00016536,7]
[406744829,1772140246195,-500.0,0.00016548,2]
[406744830,1772140246205,-500.0,0.00016602,2]
[406744831,1772140246216,-500.0,0.00016657,2]
[406744832,1772140246225,-6385.47593765,0.00016659,2]
[406744833,1772140246235,-502.0,0.00016665,3]
[406744835,1772140246244,-500.0,0.00016712,2]
[406744837,1772140246254,-1000.0,0.00016712,2]
[406744839,1772140246263,-845.0,0.0001672,2]
[406744841,1772140246272,-845.0,0.0001672,2]
[406744843,1772140246281,-500.0,0.00016767,2]
[406744844,1772140246291,-200.0,0.00016792,2]
[406744845,1772140246300,-500.0,0.00016822,2]
[406744846,1772140246310,-152.0,0.00016875,14]
[406744847,1772140246319,-500.0,0.00016876,2]
[406744848,1772140246329,-500.0,0.00016931,2]
[406744849,1772140246338,-5487.65011317,0.00016938,2]
[406744850,1772140246347,-5000.0,0.00016938,2]
[406744851,1772140246357,-150.0,0.00016971,2]
[406744852,1772140246366,-150.0,0.00016971,2]
[406744853,1772140246375,-150.0,0.00016971,2]
[406744854,1772140246385,-150.0,0.00016971,2]
[406744855,1772140246395,-150.0,0.00016971,2]
[406744856,1772140246406,-618.0,0.00016971,2]
[406744857,1772140246415,-3498.0,0.00016971,2]
[406744858,1772140246424,-500.0,0.00016986,2]
[406744859,1772140246435,-1000.0,0.00016986,2]
[406744860,1772140246444,-352.46850117,0.0001699,2]
[406744861,1772140246453,-500.0,0.00016999,2]
[406744862,1772140246462,-500.0,0.00016999,2]
[406744863,1772140246473,-500.0,0.00016999,2]
[406744864,1772140246483,-500.0,0.00016999,2]
[406744865,1772140246492,-300.0,0.00016999,2]
[406744866,1772140246501,-335658.97145896,0.00017,2]
[406744867,1772140246778,-394.44573083,0.00017,2]
[406744868,1772140246797,-6132.4370438,0.00017,2]
[406744869,1772140246941,-277.1987,0.00012811,2]
[406744870,1772140246957,-1741.24,0.00012811,2]
[406744871,1772140246983,-1779.11409296,0.00012811,2]
[406744872,1772140246995,-2185.44720704,0.00012811,2]
[406744873,1772140247005,-784.9,0.00013699,2]